[Event "Titled Tuesday Blitz March 29 Early 2022"]
[White "Ciolacu, Alessia-Mihaela"]
[Black "Mena, Ailen Oriana"]
[WhiteFideId "1252640"]
[BlackFideId "3902773"]
[WhiteElo "1777"]
[BlackElo "1534"]
[Result "1-0"]
[Round "10"]
[TimeControl "180+1"]
[Date "2022.03.30"]
[WhiteClock "0:00:54"]
[BlackClock "0:00:02"]

1. d4 {[%clk 0:03:00]}  d5 {[%clk 0:02:59]} 2. Bf4 {[%clk 0:02:57]}  Nf6 {[%clk 0:02:55]} 3. e3 {[%clk 0:02:55]}  c5 {[%clk 0:02:48]} 4. Nc3 {[%clk 0:02:54]}  a6 {[%clk 0:02:32]} 5. dxc5 {[%clk 0:02:51]}  Nc6 {[%clk 0:02:30]} 6. a3 {[%clk 0:02:44]}  e5 {[%clk 0:02:13]} 7. Bg5 {[%clk 0:02:42]}  Be6 {[%clk 0:02:12]} 8. b4 {[%clk 0:02:34]}  Be7 {[%clk 0:02:10]} 9. Nf3 {[%clk 0:02:26]}  O-O {[%clk 0:02:05]} 10. Be2 {[%clk 0:02:24]}  h6 {[%clk 0:01:58]} 11. Bh4 {[%clk 0:02:21]}  d4 {[%clk 0:01:33]} 12. exd4 {[%clk 0:02:16]}  exd4 {[%clk 0:01:31]} 13. Na4 {[%clk 0:02:09]}  Ne4 {[%clk 0:00:50]} 14. Bxe7 {[%clk 0:02:06]}  Qxe7 {[%clk 0:00:46]} 15. O-O {[%clk 0:01:40]}  Rad8 {[%clk 0:00:38]} 16. Bd3 {[%clk 0:01:39]}  f5 {[%clk 0:00:25]} 17. Re1 {[%clk 0:01:36]}  Qf7 {[%clk 0:00:14]} 18. Nb6 {[%clk 0:01:29]}  Nc3 {[%clk 0:00:12]} 19. Qd2 {[%clk 0:01:26]}  Kh8 {[%clk 0:00:11]} 20. Ne5 {[%clk 0:01:20]}  Nxe5 {[%clk 0:00:10]} 21. Rxe5 {[%clk 0:01:21]}  Bd5 {[%clk 0:00:04]} 22. Nxd5 {[%clk 0:01:17]}  Rxd5 {[%clk 0:00:02]} 23. Rae1 {[%clk 0:00:59]}  Rfd8 {[%clk 0:00:02]} 24. Qf4 {[%clk 0:00:54]} 1-0


[Site "https://www.chess.com"]

[Event "Titled Tuesday Blitz March 29 Early 2022"]
[White "Coelho, Ramyres Santana"]
[Black "Mihailidis, Anastasios"]
[WhiteFideId "2120690"]
[BlackFideId "4205588"]
[WhiteElo "1888"]
[BlackElo "2312"]
[Result "0-1"]
[Round "10"]
[TimeControl "180+1"]
[Date "2022.03.30"]
[WhiteClock "0:00:32"]
[BlackClock "0:00:33"]

1. e4 {[%clk 0:02:41]}  c5 {[%clk 0:02:59]} 2. Nf3 {[%clk 0:02:39]}  d6 {[%clk 0:03:00]} 3. d4 {[%clk 0:02:39]}  cxd4 {[%clk 0:03:01]} 4. Nxd4 {[%clk 0:02:40]}  Nf6 {[%clk 0:03:01]} 5. Nc3 {[%clk 0:02:41]}  g6 {[%clk 0:03:01]} 6. f4 {[%clk 0:02:41]}  Bg7 {[%clk 0:03:00]} 7. e5 {[%clk 0:02:41]}  dxe5 {[%clk 0:03:00]} 8. fxe5 {[%clk 0:02:42]}  Nfd7 {[%clk 0:03:01]} 9. e6 {[%clk 0:02:38]}  Ne5 {[%clk 0:03:01]} 10. exf7+ {[%clk 0:02:31]}  Kxf7 {[%clk 0:03:02]} 11. Be2 {[%clk 0:02:19]}  Nbc6 {[%clk 0:02:54]} 12. O-O+ {[%clk 0:02:19]}  Bf6 {[%clk 0:02:52]} 13. Nxc6 {[%clk 0:02:14]}  Nxc6 {[%clk 0:02:49]} 14. Bc4+ {[%clk 0:02:12]}  Kg7 {[%clk 0:02:47]} 15. Qe2 {[%clk 0:02:02]}  Nd4 {[%clk 0:02:28]} 16. Qd2 {[%clk 0:01:49]}  Nf5 {[%clk 0:02:21]} 17. Nd5 {[%clk 0:01:26]}  h5 {[%clk 0:02:02]} 18. Qf4 {[%clk 0:01:09]}  Qd6 {[%clk 0:01:27]} 19. Qf3 {[%clk 0:01:04]}  Be6 {[%clk 0:01:20]} 20. Bf4 {[%clk 0:00:59]}  Qc5+ {[%clk 0:01:16]} 21. Kh1 {[%clk 0:00:57]}  Qxc4 {[%clk 0:01:13]} 22. Nxf6 {[%clk 0:00:56]}  exf6 {[%clk 0:01:12]} 23. Rae1 {[%clk 0:00:56]}  Bf7 {[%clk 0:01:10]} 24. Re4 {[%clk 0:00:52]}  Qxc2 {[%clk 0:00:53]} 25. Rb4 {[%clk 0:00:37]}  b6 {[%clk 0:00:49]} 26. Rc1 {[%clk 0:00:32]}  Rae8 {[%clk 0:00:33]} 0-1


[Site "https://www.chess.com"]

[Event "Titled Tuesday Blitz March 29 Early 2022"]
[White "Cramling Bellon, Anna"]
[Black "Koridze, Lile"]
[WhiteFideId "32009232"]
[BlackFideId "13612514"]
[WhiteElo "1905"]
[BlackElo "1999"]
[Result "0-1"]
[Round "10"]
[TimeControl "180+1"]
[Date "2022.03.30"]
[WhiteClock "0:00:02"]
[BlackClock "0:01:59"]

1. d4 {[%clk 0:03:00]}  Nf6 {[%clk 0:02:59]} 2. c4 {[%clk 0:02:56]}  e6 {[%clk 0:02:59]} 3. Nf3 {[%clk 0:02:54]}  d5 {[%clk 0:02:59]} 4. Nc3 {[%clk 0:02:53]}  Bb4 {[%clk 0:02:58]} 5. Bg5 {[%clk 0:02:40]}  O-O {[%clk 0:02:54]} 6. e3 {[%clk 0:02:40]}  h6 {[%clk 0:02:54]} 7. Bh4 {[%clk 0:02:40]}  Nbd7 {[%clk 0:02:50]} 8. Bd3 {[%clk 0:02:39]}  c6 {[%clk 0:02:48]} 9. O-O {[%clk 0:02:38]}  Be7 {[%clk 0:02:48]} 10. Rc1 {[%clk 0:02:29]}  b6 {[%clk 0:02:48]} 11. cxd5 {[%clk 0:02:23]}  cxd5 {[%clk 0:02:47]} 12. Nb5 {[%clk 0:01:51]}  Ba6 {[%clk 0:02:41]} 13. Nc7 {[%clk 0:01:49]}  Bxd3 {[%clk 0:02:41]} 14. Qxd3 {[%clk 0:01:32]}  Rc8 {[%clk 0:02:40]} 15. Nb5 {[%clk 0:01:23]}  a6 {[%clk 0:02:40]} 16. Na7 {[%clk 0:01:19]}  Rxc1 {[%clk 0:02:35]} 17. Rxc1 {[%clk 0:01:18]}  b5 {[%clk 0:02:31]} 18. Nc6 {[%clk 0:01:01]}  Qe8 {[%clk 0:02:31]} 19. Nfe5 {[%clk 0:00:56]}  Bd6 {[%clk 0:02:25]} 20. f4 {[%clk 0:00:44]}  Ne4 {[%clk 0:02:22]} 21. Nxd7 {[%clk 0:00:31]}  Qxd7 {[%clk 0:02:21]} 22. Ne5 {[%clk 0:00:31]}  Bxe5 {[%clk 0:02:17]} 23. fxe5 {[%clk 0:00:31]}  Rc8 {[%clk 0:02:18]} 24. Rc2 {[%clk 0:00:28]}  Rc6 {[%clk 0:02:13]} 25. Qd1 {[%clk 0:00:15]}  Qc7 {[%clk 0:02:12]} 26. Rxc6 {[%clk 0:00:15]}  Qxc6 {[%clk 0:02:13]} 27. h3 {[%clk 0:00:13]}  Qc4 {[%clk 0:02:12]} 28. a3 {[%clk 0:00:07]}  a5 {[%clk 0:02:09]} 29. Qg4 {[%clk 0:00:05]}  Qc1+ {[%clk 0:02:07]} 30. Kh2 {[%clk 0:00:04]}  Qxe3 {[%clk 0:02:07]} 31. Bf6 {[%clk 0:00:02]}  g6 {[%clk 0:02:02]} 32. Bh4 {[%clk 0:00:03]}  Qxd4 {[%clk 0:02:00]} 33. Qf4 {[%clk 0:00:03]}  g5 {[%clk 0:01:59]} 34. Bxg5 {[%clk 0:00:01]}  hxg5 {[%clk 0:01:59]} 35. Qg4 {[%clk 0:00:02]}  Qxe5+ {[%clk 0:01:59]} 0-1


[Site "https://www.chess.com"]

[Event "Titled Tuesday Blitz March 29 Early 2022"]
[White "Demchenko, Anton"]
[Black "Aditya Mittal"]
[WhiteFideId "4160258"]
[BlackFideId "35042025"]
[WhiteElo "2539"]
[BlackElo "2303"]
[Result "1-0"]
[Round "10"]
[TimeControl "180+1"]
[Date "2022.03.29"]
[WhiteClock "0:00:59"]
[BlackClock "0:00:12"]

1. e4 {[%clk 0:03:00]}  c5 {[%clk 0:03:00]} 2. Nf3 {[%clk 0:03:01]}  d6 {[%clk 0:03:00]} 3. d4 {[%clk 0:03:00]}  cxd4 {[%clk 0:03:01]} 4. Qxd4 {[%clk 0:03:00]}  Nf6 {[%clk 0:03:01]} 5. Nc3 {[%clk 0:03:00]}  Nc6 {[%clk 0:03:02]} 6. Qe3 {[%clk 0:03:00]}  g6 {[%clk 0:03:01]} 7. h3 {[%clk 0:03:00]}  Bg7 {[%clk 0:03:02]} 8. Bc4 {[%clk 0:03:00]}  O-O {[%clk 0:03:01]} 9. O-O {[%clk 0:03:01]}  Nd7 {[%clk 0:02:55]} 10. Rd1 {[%clk 0:02:59]}  Qb6 {[%clk 0:02:55]} 11. Qe1 {[%clk 0:02:52]}  Nde5 {[%clk 0:02:40]} 12. Nxe5 {[%clk 0:02:50]}  Nxe5 {[%clk 0:02:40]} 13. Bb3 {[%clk 0:02:36]}  Be6 {[%clk 0:02:38]} 14. Be3 {[%clk 0:02:33]}  Qa5 {[%clk 0:02:23]} 15. Nd5 {[%clk 0:02:27]}  Qd8 {[%clk 0:02:10]} 16. Bd4 {[%clk 0:02:22]}  Nd7 {[%clk 0:02:00]} 17. c3 {[%clk 0:02:20]}  b6 {[%clk 0:01:55]} 18. f4 {[%clk 0:02:15]}  Nc5 {[%clk 0:01:55]} 19. Bc2 {[%clk 0:02:15]}  Re8 {[%clk 0:01:21]} 20. Bxg7 {[%clk 0:02:01]}  Kxg7 {[%clk 0:01:22]} 21. Ne3 {[%clk 0:02:02]}  f6 {[%clk 0:01:18]} 22. Qh4 {[%clk 0:01:59]}  Qc8 {[%clk 0:01:15]} 23. Qg3 {[%clk 0:01:41]}  Qb7 {[%clk 0:01:13]} 24. Rd4 {[%clk 0:01:36]}  Rac8 {[%clk 0:01:05]} 25. h4 {[%clk 0:01:35]}  Kh8 {[%clk 0:01:02]} 26. e5 {[%clk 0:01:23]}  dxe5 {[%clk 0:00:55]} 27. fxe5 {[%clk 0:01:24]}  Nd7 {[%clk 0:00:52]} 28. h5 {[%clk 0:01:15]}  Nxe5 {[%clk 0:00:35]} 29. hxg6 {[%clk 0:01:15]}  Rg8 {[%clk 0:00:31]} 30. Rh4 {[%clk 0:01:06]}  Rg7 {[%clk 0:00:32]} 31. Qh2 {[%clk 0:01:06]}  Bg8 {[%clk 0:00:17]} 32. Rh6 {[%clk 0:01:05]}  e6 {[%clk 0:00:14]} 33. Rf1 {[%clk 0:01:03]}  Rd8 {[%clk 0:00:14]} 34. Rxf6 {[%clk 0:01:00]}  Rd2 {[%clk 0:00:14]} 35. Qxe5 {[%clk 0:00:59]}  Re2 {[%clk 0:00:12]} 1-0


[Site "https://www.chess.com"]

[Event "Titled Tuesday Blitz March 29 Early 2022"]
[White "Fajdetic, Hrvoje"]
[Black "Jeet, Jain"]
[WhiteFideId "14501945"]
[BlackFideId "5073022"]
[WhiteElo "2172"]
[BlackElo "2085"]
[Result "1/2-1/2"]
[Round "10"]
[TimeControl "180+1"]
[Date "2022.03.30"]
[WhiteClock "0:00:04"]
[BlackClock "0:00:20"]

1. d4 {[%clk 0:03:00]}  Nf6 {[%clk 0:02:59]} 2. Bf4 {[%clk 0:03:00]}  g6 {[%clk 0:02:52]} 3. Nc3 {[%clk 0:03:00]}  c5 {[%clk 0:02:53]} 4. d5 {[%clk 0:02:53]}  Bg7 {[%clk 0:02:52]} 5. Qd2 {[%clk 0:02:52]}  d6 {[%clk 0:02:50]} 6. O-O-O {[%clk 0:02:52]}  a6 {[%clk 0:02:46]} 7. Bh6 {[%clk 0:02:50]}  Bxh6 {[%clk 0:02:44]} 8. Qxh6 {[%clk 0:02:51]}  b5 {[%clk 0:02:45]} 9. f3 {[%clk 0:02:50]}  b4 {[%clk 0:02:44]} 10. Ne4 {[%clk 0:02:50]}  Nxe4 {[%clk 0:02:41]} 11. fxe4 {[%clk 0:02:51]}  Nd7 {[%clk 0:02:38]} 12. Nf3 {[%clk 0:02:51]}  Nf6 {[%clk 0:02:37]} 13. e5 {[%clk 0:02:40]}  dxe5 {[%clk 0:02:37]} 14. Nxe5 {[%clk 0:02:37]}  Bf5 {[%clk 0:02:28]} 15. g4 {[%clk 0:02:21]}  Be4 {[%clk 0:02:26]} 16. g5 {[%clk 0:01:48]}  Bxh1 {[%clk 0:02:25]} 17. gxf6 {[%clk 0:01:44]}  exf6 {[%clk 0:02:25]} 18. Qg7 {[%clk 0:01:27]}  Rf8 {[%clk 0:02:24]} 19. Ng4 {[%clk 0:01:22]}  Qd6 {[%clk 0:02:12]} 20. Nxf6+ {[%clk 0:01:20]}  Ke7 {[%clk 0:02:12]} 21. Nxh7 {[%clk 0:01:09]}  Rh8 {[%clk 0:01:58]} 22. Qh6 {[%clk 0:00:40]}  Be4 {[%clk 0:01:31]} 23. Qe3 {[%clk 0:00:30]}  Rxh7 {[%clk 0:01:29]} 24. Qxe4+ {[%clk 0:00:29]}  Kf8 {[%clk 0:01:29]} 25. h3 {[%clk 0:00:24]}  a5 {[%clk 0:01:25]} 26. Qg4 {[%clk 0:00:20]}  a4 {[%clk 0:01:25]} 27. e4 {[%clk 0:00:19]}  a3 {[%clk 0:01:25]} 28. Qg5 {[%clk 0:00:11]}  axb2+ {[%clk 0:01:24]} 29. Kb1 {[%clk 0:00:12]}  Rh5 {[%clk 0:01:20]} 30. Qe3 {[%clk 0:00:10]}  Kg8 {[%clk 0:01:14]} 31. Bc4 {[%clk 0:00:09]}  Ra3 {[%clk 0:01:09]} 32. Qg1 {[%clk 0:00:04]}  Rhxh3 {[%clk 0:01:08]} 33. e5 {[%clk 0:00:04]}  Qxe5 {[%clk 0:01:01]} 34. d6 {[%clk 0:00:05]}  Ra8 {[%clk 0:01:02]} 35. Qxg6+ {[%clk 0:00:05]}  Kh8 {[%clk 0:01:00]} 36. Qxf7 {[%clk 0:00:05]}  Rh7 {[%clk 0:00:56]} 37. Qf2 {[%clk 0:00:04]}  Rd8 {[%clk 0:00:54]} 38. Qd2 {[%clk 0:00:03]}  Rhd7 {[%clk 0:00:47]} 39. Rh1+ {[%clk 0:00:03]}  Rh7 {[%clk 0:00:46]} 40. Rd1 {[%clk 0:00:03]}  Rdd7 {[%clk 0:00:44]} 41. Bb5 {[%clk 0:00:03]}  Rd8 {[%clk 0:00:39]} 42. d7 {[%clk 0:00:04]}  Qc3 {[%clk 0:00:34]} 43. Qe2 {[%clk 0:00:03]}  Qg7 {[%clk 0:00:21]} 44. Qe8+ {[%clk 0:00:03]}  Qg8 {[%clk 0:00:21]} 45. Qe5+ {[%clk 0:00:03]}  Qg7 {[%clk 0:00:21]} 46. Qe8+ {[%clk 0:00:04]}  Qg8 {[%clk 0:00:20]} 47. Qe5+ {[%clk 0:00:04]}  Qg7 {[%clk 0:00:20]} 48. Qe8+ {[%clk 0:00:04]} 1/2-1/2


[Site "https://www.chess.com"]

[Event "Titled Tuesday Blitz March 29 Early 2022"]
[White "Fedoseev, Vladimir"]
[Black "Salinas Herrera, Pablo"]
[WhiteFideId "24130737"]
[BlackFideId "3407128"]
[WhiteElo "2726"]
[BlackElo "2541"]
[Result "0-1"]
[Round "10"]
[TimeControl "180+1"]
[Date "2022.03.29"]
[WhiteClock "0:00:17"]
[BlackClock "0:00:04"]

1. e4 {[%clk 0:03:00]}  c5 {[%clk 0:03:00]} 2. Nf3 {[%clk 0:03:00]}  e6 {[%clk 0:03:00]} 3. d4 {[%clk 0:03:00]}  cxd4 {[%clk 0:03:01]} 4. Nxd4 {[%clk 0:03:00]}  a6 {[%clk 0:03:02]} 5. Bd3 {[%clk 0:02:59]}  Bc5 {[%clk 0:03:01]} 6. Nb3 {[%clk 0:03:00]}  Ba7 {[%clk 0:03:02]} 7. Qg4 {[%clk 0:02:59]}  Nf6 {[%clk 0:03:02]} 8. Qg3 {[%clk 0:02:56]}  d6 {[%clk 0:03:02]} 9. Nc3 {[%clk 0:02:54]}  Nc6 {[%clk 0:03:02]} 10. Be3 {[%clk 0:02:50]}  O-O {[%clk 0:03:02]} 11. Bxa7 {[%clk 0:02:49]}  Rxa7 {[%clk 0:03:02]} 12. Rd1 {[%clk 0:02:43]}  b5 {[%clk 0:02:57]} 13. O-O {[%clk 0:02:40]}  e5 {[%clk 0:02:45]} 14. Qe3 {[%clk 0:02:31]}  Be6 {[%clk 0:02:40]} 15. Nd5 {[%clk 0:02:27]}  Rd7 {[%clk 0:01:19]} 16. c4 {[%clk 0:02:05]}  Bxd5 {[%clk 0:01:18]} 17. cxd5 {[%clk 0:02:00]}  Na5 {[%clk 0:01:15]} 18. Nd2 {[%clk 0:01:57]}  Qb8 {[%clk 0:01:02]} 19. b4 {[%clk 0:01:55]}  Nc4 {[%clk 0:00:49]} 20. Bxc4 {[%clk 0:01:52]}  bxc4 {[%clk 0:00:50]} 21. Rb1 {[%clk 0:01:36]}  Rc8 {[%clk 0:00:47]} 22. Rfc1 {[%clk 0:01:34]}  Qb5 {[%clk 0:00:46]} 23. Rb2 {[%clk 0:01:22]}  Rdc7 {[%clk 0:00:40]} 24. Qc3 {[%clk 0:01:18]}  Nd7 {[%clk 0:00:35]} 25. Rbc2 {[%clk 0:01:13]}  Nb6 {[%clk 0:00:35]} 26. Nb1 {[%clk 0:01:12]}  Na4 {[%clk 0:00:25]} 27. Qe1 {[%clk 0:01:12]}  c3 {[%clk 0:00:23]} 28. a3 {[%clk 0:01:03]}  Qd3 {[%clk 0:00:21]} 29. f3 {[%clk 0:00:59]}  f5 {[%clk 0:00:15]} 30. Kf2 {[%clk 0:00:56]}  fxe4 {[%clk 0:00:16]} 31. Qxe4 {[%clk 0:00:55]}  Qxe4 {[%clk 0:00:15]} 32. fxe4 {[%clk 0:00:56]}  Rc4 {[%clk 0:00:16]} 33. Ke3 {[%clk 0:00:57]}  Kf7 {[%clk 0:00:15]} 34. Rf2+ {[%clk 0:00:48]}  Ke7 {[%clk 0:00:13]} 35. Rcc2 {[%clk 0:00:47]}  Rd4 {[%clk 0:00:11]} 36. Rfe2 {[%clk 0:00:27]}  Rd1 {[%clk 0:00:11]} 37. Nd2 {[%clk 0:00:22]}  Rxd2 {[%clk 0:00:07]} 38. Rcxd2 {[%clk 0:00:20]}  cxd2 {[%clk 0:00:08]} 39. Kxd2 {[%clk 0:00:21]}  Rc4 {[%clk 0:00:08]} 40. Re3 {[%clk 0:00:20]}  Rd4+ {[%clk 0:00:07]} 41. Kc2 {[%clk 0:00:20]}  Nb6 {[%clk 0:00:06]} 42. Kc3 {[%clk 0:00:21]}  Nc4 {[%clk 0:00:05]} 43. Re2 {[%clk 0:00:21]}  Nxa3 {[%clk 0:00:05]} 44. Kb3 {[%clk 0:00:21]}  Nb5 {[%clk 0:00:05]} 45. Re3 {[%clk 0:00:21]}  h5 {[%clk 0:00:04]} 46. Ka4 {[%clk 0:00:21]}  Nc7 {[%clk 0:00:02]} 47. Ka5 {[%clk 0:00:21]}  g5 {[%clk 0:00:02]} 48. h3 {[%clk 0:00:21]}  Kd7 {[%clk 0:00:02]} 49. g3 {[%clk 0:00:20]}  Kc8 {[%clk 0:00:02]} 50. g4 {[%clk 0:00:18]}  hxg4 {[%clk 0:00:02]} 51. hxg4 {[%clk 0:00:18]}  Kb7 {[%clk 0:00:03]} 52. Re1 {[%clk 0:00:17]}  Rd3 {[%clk 0:00:03]} 53. Ka4 {[%clk 0:00:17]}  Nb5 {[%clk 0:00:03]} 54. Ra1 {[%clk 0:00:17]}  Kb6 {[%clk 0:00:04]} 0-1


[Site "https://www.chess.com"]

[Event "Titled Tuesday Blitz March 29 Early 2022"]
[White "Gatterer, Florian"]
[Black "Smietanska, Wiktoria"]
[WhiteFideId "811688"]
[BlackFideId "21869359"]
[WhiteElo "2218"]
[BlackElo "1893"]
[Result "1-0"]
[Round "10"]
[TimeControl "180+1"]
[Date "2022.03.30"]
[WhiteClock "0:00:12"]
[BlackClock "0:00:03"]

1. f4 {[%clk 0:03:00]}  d5 {[%clk 0:02:57]} 2. Nf3 {[%clk 0:03:00]}  c5 {[%clk 0:02:57]} 3. e3 {[%clk 0:03:00]}  Nc6 {[%clk 0:02:57]} 4. Be2 {[%clk 0:03:00]}  Nf6 {[%clk 0:02:57]} 5. O-O {[%clk 0:03:01]}  e6 {[%clk 0:02:57]} 6. d3 {[%clk 0:03:01]}  Bd6 {[%clk 0:02:57]} 7. Nc3 {[%clk 0:03:00]}  O-O {[%clk 0:02:57]} 8. e4 {[%clk 0:03:00]}  d4 {[%clk 0:02:56]} 9. Nb5 {[%clk 0:02:56]}  Bb8 {[%clk 0:02:55]} 10. a4 {[%clk 0:02:54]}  a6 {[%clk 0:02:50]} 11. Na3 {[%clk 0:02:53]}  Bc7 {[%clk 0:02:50]} 12. Nc4 {[%clk 0:02:53]}  Rb8 {[%clk 0:02:47]} 13. Bd2 {[%clk 0:02:25]}  b5 {[%clk 0:02:43]} 14. axb5 {[%clk 0:02:25]}  axb5 {[%clk 0:02:44]} 15. Nce5 {[%clk 0:02:25]}  Nxe5 {[%clk 0:02:37]} 16. fxe5 {[%clk 0:02:25]}  Nd7 {[%clk 0:02:36]} 17. Bg5 {[%clk 0:02:25]}  Qe8 {[%clk 0:02:35]} 18. c3 {[%clk 0:02:07]}  Nxe5 {[%clk 0:02:34]} 19. cxd4 {[%clk 0:02:00]}  Nxf3+ {[%clk 0:02:33]} 20. Bxf3 {[%clk 0:01:53]}  cxd4 {[%clk 0:02:33]} 21. Qc2 {[%clk 0:01:52]}  Bb6 {[%clk 0:02:26]} 22. Qd2 {[%clk 0:01:34]}  Bd7 {[%clk 0:02:24]} 23. Qb4 {[%clk 0:01:27]}  f6 {[%clk 0:02:08]} 24. Bd2 {[%clk 0:01:26]}  e5 {[%clk 0:02:02]} 25. Ra6 {[%clk 0:01:26]}  Qc8 {[%clk 0:01:48]} 26. Rfa1 {[%clk 0:01:20]}  Qb7 {[%clk 0:01:43]} 27. Qd6 {[%clk 0:01:07]}  Rfd8 {[%clk 0:01:34]} 28. Bb4 {[%clk 0:00:49]}  Bc6 {[%clk 0:01:00]} 29. Qe6+ {[%clk 0:00:43]}  Kh8 {[%clk 0:00:58]} 30. Qh3 {[%clk 0:00:38]}  Ra8 {[%clk 0:00:51]} 31. Rxa8 {[%clk 0:00:36]}  Rxa8 {[%clk 0:00:52]} 32. Rxa8+ {[%clk 0:00:29]}  Qxa8 {[%clk 0:00:53]} 33. Qe6 {[%clk 0:00:29]}  h6 {[%clk 0:00:26]} 34. Kf2 {[%clk 0:00:28]}  Qe8 {[%clk 0:00:22]} 35. Qd6 {[%clk 0:00:26]}  Qd7 {[%clk 0:00:20]} 36. Qf8+ {[%clk 0:00:25]}  Kh7 {[%clk 0:00:20]} 37. h3 {[%clk 0:00:25]}  Qe8 {[%clk 0:00:17]} 38. Qd6 {[%clk 0:00:23]}  Qd7 {[%clk 0:00:17]} 39. Qb8 {[%clk 0:00:22]}  Qc7 {[%clk 0:00:08]} 40. Qf8 {[%clk 0:00:20]}  Qd8 {[%clk 0:00:07]} 41. Qf7 {[%clk 0:00:18]}  Qc7 {[%clk 0:00:08]} 42. Qh5 {[%clk 0:00:17]}  Bd7 {[%clk 0:00:06]} 43. Bg4 {[%clk 0:00:16]}  Bxg4 {[%clk 0:00:05]} 44. Qxg4 {[%clk 0:00:17]}  Qc2+ {[%clk 0:00:06]} 45. Kg1 {[%clk 0:00:16]}  Qc1+ {[%clk 0:00:04]} 46. Kh2 {[%clk 0:00:15]}  Qf4+ {[%clk 0:00:04]} 47. Qxf4 {[%clk 0:00:15]}  exf4 {[%clk 0:00:04]} 48. Bd6 {[%clk 0:00:15]}  g5 {[%clk 0:00:05]} 49. Kg1 {[%clk 0:00:15]}  Kg6 {[%clk 0:00:06]} 50. Kf2 {[%clk 0:00:16]}  f5 {[%clk 0:00:06]} 51. Kf3 {[%clk 0:00:15]}  Ba5 {[%clk 0:00:04]} 52. Bb8 {[%clk 0:00:13]}  Bb6 {[%clk 0:00:04]} 53. Bd6 {[%clk 0:00:12]}  Ba7 {[%clk 0:00:04]} 54. Bc7 {[%clk 0:00:12]}  Kf6 {[%clk 0:00:04]} 55. Bd6 {[%clk 0:00:12]}  Ke6 {[%clk 0:00:04]} 56. Bc7 {[%clk 0:00:12]}  Bc5 {[%clk 0:00:04]} 57. Bb8 {[%clk 0:00:12]}  Bb6 {[%clk 0:00:04]} 58. g3 {[%clk 0:00:11]}  fxg3 {[%clk 0:00:03]} 59. exf5+ {[%clk 0:00:12]}  Kxf5 {[%clk 0:00:03]} 60. Bxg3 {[%clk 0:00:12]}  Bc5 {[%clk 0:00:03]} 61. Bc7 {[%clk 0:00:12]} 1-0


[Site "https://www.chess.com"]

[Event "Titled Tuesday Blitz March 29 Early 2022"]
[White "Goryachkina, Aleksandra"]
[Black "Rustemov, Alexander"]
[WhiteFideId "4147103"]
[BlackFideId "4119002"]
[WhiteElo "2426"]
[BlackElo "2755"]
[Result "1/2-1/2"]
[Round "10"]
[TimeControl "180+1"]
[Date "2022.03.29"]
[WhiteClock "0:00:04"]
[BlackClock "0:00:03"]

1. e4 {[%clk 0:02:59]}  e6 {[%clk 0:02:59]} 2. d4 {[%clk 0:02:59]}  d5 {[%clk 0:02:59]} 3. Nd2 {[%clk 0:02:59]}  dxe4 {[%clk 0:02:58]} 4. Nxe4 {[%clk 0:02:59]}  Bd7 {[%clk 0:02:59]} 5. Nf3 {[%clk 0:02:57]}  Bc6 {[%clk 0:02:59]} 6. Bd3 {[%clk 0:02:57]}  Nd7 {[%clk 0:02:59]} 7. O-O {[%clk 0:02:53]}  Ngf6 {[%clk 0:03:00]} 8. Nxf6+ {[%clk 0:02:32]}  Qxf6 {[%clk 0:02:56]} 9. Re1 {[%clk 0:02:11]}  Bxf3 {[%clk 0:02:55]} 10. Qxf3 {[%clk 0:02:11]}  Qxf3 {[%clk 0:02:55]} 11. gxf3 {[%clk 0:02:12]}  Be7 {[%clk 0:02:44]} 12. Bf4 {[%clk 0:02:10]}  c6 {[%clk 0:02:42]} 13. Rad1 {[%clk 0:02:04]}  Nf6 {[%clk 0:02:39]} 14. c4 {[%clk 0:02:02]}  Rd8 {[%clk 0:02:38]} 15. Be5 {[%clk 0:02:01]}  O-O {[%clk 0:02:30]} 16. a3 {[%clk 0:01:50]}  Rd7 {[%clk 0:02:27]} 17. b4 {[%clk 0:01:38]}  Rfd8 {[%clk 0:02:26]} 18. Bc2 {[%clk 0:01:33]}  Nh5 {[%clk 0:02:15]} 19. Kf1 {[%clk 0:01:12]}  Bd6 {[%clk 0:02:04]} 20. d5 {[%clk 0:00:20]}  cxd5 {[%clk 0:01:52]} 21. cxd5 {[%clk 0:00:19]}  Bxe5 {[%clk 0:01:51]} 22. Rxe5 {[%clk 0:00:18]}  Nf6 {[%clk 0:01:50]} 23. Bb3 {[%clk 0:00:14]}  Nxd5 {[%clk 0:01:45]} 24. Bxd5 {[%clk 0:00:12]}  Rxd5 {[%clk 0:01:38]} 25. Rexd5 {[%clk 0:00:13]}  Rxd5 {[%clk 0:01:24]} 26. Rc1 {[%clk 0:00:13]}  g5 {[%clk 0:00:58]} 27. Rc7 {[%clk 0:00:11]}  Rb5 {[%clk 0:00:51]} 28. Ke2 {[%clk 0:00:08]}  a6 {[%clk 0:00:49]} 29. Kd3 {[%clk 0:00:05]}  b6 {[%clk 0:00:44]} 30. Rc6 {[%clk 0:00:04]}  Rd5+ {[%clk 0:00:18]} 31. Ke3 {[%clk 0:00:03]}  Re5+ {[%clk 0:00:14]} 32. Kd3 {[%clk 0:00:04]}  Rf5 {[%clk 0:00:13]} 33. Ke3 {[%clk 0:00:04]}  Rb5 {[%clk 0:00:11]} 34. Kd3 {[%clk 0:00:04]}  Kg7 {[%clk 0:00:10]} 35. Kc4 {[%clk 0:00:04]}  Rf5 {[%clk 0:00:05]} 36. Rxb6 {[%clk 0:00:04]}  Rxf3 {[%clk 0:00:05]} 37. Rxa6 {[%clk 0:00:05]}  Rxf2 {[%clk 0:00:04]} 38. b5 {[%clk 0:00:05]}  Rb2 {[%clk 0:00:03]} 39. b6 {[%clk 0:00:04]}  f5 {[%clk 0:00:03]} 40. Kc3 {[%clk 0:00:04]}  Rb1 {[%clk 0:00:03]} 41. Kc2 {[%clk 0:00:04]}  Rb5 {[%clk 0:00:01]} 42. a4 {[%clk 0:00:04]}  Rb4 {[%clk 0:00:02]} 43. Kc3 {[%clk 0:00:05]}  Rb1 {[%clk 0:00:02]} 44. Kc2 {[%clk 0:00:03]}  Rb4 {[%clk 0:00:02]} 45. Kc3 {[%clk 0:00:04]}  Rb1 {[%clk 0:00:03]} 46. Kc2 {[%clk 0:00:04]}  Rb4 {[%clk 0:00:03]} 1/2-1/2


[Site "https://www.chess.com"]

[Event "Titled Tuesday Blitz March 29 Early 2022"]
[White "Hakobyan, Aram"]
[Black "Nakamura, Hikaru"]
[WhiteFideId "13306677"]
[BlackFideId "2016192"]
[WhiteElo "2557"]
[BlackElo "2850"]
[Result "0-1"]
[Round "10"]
[TimeControl "180+1"]
[Date "2022.03.29"]
[WhiteClock "0:00:02"]
[BlackClock "0:00:25"]

1. d4 {[%clk 0:03:00]}  Nf6 {[%clk 0:02:56]} 2. c4 {[%clk 0:03:01]}  e6 {[%clk 0:02:56]} 3. Nc3 {[%clk 0:03:01]}  Bb4 {[%clk 0:02:56]} 4. e3 {[%clk 0:03:02]}  O-O {[%clk 0:02:56]} 5. Bd3 {[%clk 0:03:02]}  c5 {[%clk 0:02:55]} 6. Ne2 {[%clk 0:03:01]}  d5 {[%clk 0:02:54]} 7. a3 {[%clk 0:03:01]}  Bxc3+ {[%clk 0:02:54]} 8. bxc3 {[%clk 0:03:02]}  dxc4 {[%clk 0:02:54]} 9. Bxc4 {[%clk 0:03:03]}  b6 {[%clk 0:02:55]} 10. O-O {[%clk 0:03:01]}  Qc7 {[%clk 0:02:55]} 11. Ba2 {[%clk 0:03:01]}  Ba6 {[%clk 0:02:55]} 12. Bb2 {[%clk 0:03:01]}  Rd8 {[%clk 0:02:54]} 13. Rc1 {[%clk 0:03:02]}  Nc6 {[%clk 0:02:54]} 14. c4 {[%clk 0:03:02]}  cxd4 {[%clk 0:02:52]} 15. exd4 {[%clk 0:03:03]}  Na5 {[%clk 0:02:36]} 16. d5 {[%clk 0:03:01]}  e5 {[%clk 0:02:36]} 17. Ng3 {[%clk 0:02:59]}  Bxc4 {[%clk 0:02:29]} 18. Nf5 {[%clk 0:02:32]}  Qd7 {[%clk 0:02:03]} 19. Nh6+ {[%clk 0:02:32]}  gxh6 {[%clk 0:02:01]} 20. Bxc4 {[%clk 0:02:33]}  Nxc4 {[%clk 0:02:00]} 21. Rxc4 {[%clk 0:02:34]}  Qxd5 {[%clk 0:02:01]} 22. Qc1 {[%clk 0:02:34]}  Rd6 {[%clk 0:01:50]} 23. Re1 {[%clk 0:02:30]}  Re8 {[%clk 0:01:47]} 24. Rc7 {[%clk 0:02:23]}  Ne4 {[%clk 0:01:44]} 25. Qe3 {[%clk 0:02:21]}  Nc5 {[%clk 0:01:12]} 26. Bxe5 {[%clk 0:00:26]}  Qxe5 {[%clk 0:00:39]} 27. Qg3+ {[%clk 0:00:21]}  Kf8 {[%clk 0:00:39]} 28. Rxf7+ {[%clk 0:00:01]}  Kxf7 {[%clk 0:00:39]} 29. Qf3+ {[%clk 0:00:02]}  Rf6 {[%clk 0:00:26]} 30. Qb7+ {[%clk 0:00:02]}  Nxb7 {[%clk 0:00:25]} 0-1


[Site "https://www.chess.com"]